Workbook

Sheet RESUMO
B2: PLANILHA ORÇAMENTÁRIA RESUMIDA | D2: Data base: Abril 2023
D3: B.D.I. | E3: 0.2822
B4: Item | C4: Descrição | D4: Desonerado
D5: Total | E5: Peso (%)
B6: 1 | C6: ADMINISTRAÇÃO | D6: =ORÇAMENTO!$I$7 -> 8215.98 | E6: =ROUND(D6/$D$11,4) -> 0.0715
B7: 2 | C7: CABEAMENTO ESTRUTURADO /CFTV-IP | D7: =ORÇAMENTO!$I$9 -> 44482.41 | E7: =ROUND(D7/$D$11,4) -> 0.3869
B8: 3 | C8: SISTEMA DE CLIMATIZAÇÃO | D8: =ORÇAMENTO!$I$32 -> 6528.33 | E8: =ROUND(D8/$D$11,4) -> 0.0568
B9: 4 | C9: INSTALAÇÕES ELÉTRICAS COMUM E ESTABILIZADAS | D9: =ORÇAMENTO!$I$45 -> 53678.39 | E9: =ROUND(D9/$D$11,4) -> 0.4669
B10: 5 | C10: REVISÃO DAS INSTALAÇÕES ELÉTRICAS EXISTENTE | D10: =ORÇAMENTO!$I$85 -> 2065.81 | E10: =ROUND(D10/$D$11,4) -> 0.018
C11: TOTAL | D11: =ROUND(SUM(D6:D10),2) -> 114970.92 | E11: =D11/D11 -> 1
B13: ORIENTAÇÕES GERAIS
B14: Nesta aba "RESUMO" preencher apenas o % de BDI na célula D3.
B15: Na aba "ORÇAMENTO" preencher apenas a coluna G com os preços unitários e o % de BDI na célula H2.

Sheet ORÇAMENTO
D1: Bancos | G1: DESONERADO | H1: B.D.I. | I1: =I95 -> 114970.92
A2: Prazo de Execução: 30 dias corridos | D2: SINAPI - 04/2023 - Goiás AGETOP CIVIL - 05/2023 - Goiás | H2: 0.2822
A3: PLANILHA ORÇAMENTÁRIA SINTÉTICA COM VALOR DO MATERIAL E DA MÃO DE OBRA
A4: Item | B4: Código | C4: Banco | D4: Descrição | E4: Und | F4: Quant. | G4: Valor Unit | H4: Valor Unit com BDI | I4: Valor Total | J4: Peso (%)
A7: 1 | D7: ADMINISTRAÇÃO LOCAL | E7: MÊS | F7: 1 | G7: 6407.72 | H7: =ROUND(G7*(1+$H$2),2) -> 8215.98 | I7: =ROUND(F7*H7,2) -> 8215.98 | J7: =ROUND(I7/$I$95,4) -> 0.0715
A9: 2 | D9: CABEAMENTO ESTRUTURADO /CFTV-IP | I9: =SUM(I10:I31) -> 44482.41 | J9: =ROUND(I9/$I$95,4) -> 0.3869
A10: 2.1 | B10: MEC - COD 01 | C10: Próprio | D10: TÊ HORIZONTAL 100 X 50 MM PARA ELETROCALHA METÁLICA, FORNECIMENTO E INSTALAÇÃO | E10: UND | F10: 1 | G10: 54.98 | H10: =ROUND(G10*(1+$H$2),2) -> 70.5 | I10: =ROUND(F10*H10,2) -> 70.5 | J10: 0.0006
A11: 2.2 | B11: MEC - COD 02 | C11: Próprio | D11: ELETROCALHA METÁLICA 100X50MM, LISA CHAPA 18 BARRA 3 METROS AÉREO - FORNECIMENTO E INSTALAÇÃO | E11: UND | F11: 3 | G11: 123.86 | H11: =ROUND(G11*(1+$H$2),2) -> 158.81 | I11: =ROUND(F11*H11,2) -> 476.43 | J11: 0.0041
A12: 2.3 | B12: MEC - COD 03 | C12: Próprio | D12: ELETROCALHA - CURVA 90 VERTICAL 100x50MM CHAPA 20 - FORNECIMENTO E INSTALAÇÃO | E12: UND | F12: 1 | G12: 48.39 | H12: 62.05 | I12: 62.05 | J12: 0.0005
A13: 2.4 | B13: MEC - COD 17 | C13: Próprio | D13: EMENDA INTERNA ELETROCALHA 100X50MM - FORNECIMENTO E INSTALAÇÃO | E13: UN | F13: 2 | G13: 17.7 | H13: 22.69 | I13: 45.38 | J13: 0.0004
A14: 2.5 | B14: MEC - COD 04 | C14: Próprio | D14: SAIDA HORIZONTAL PARA ELETRODUTO D=3/4", COM BOX RETO EM ELETROCALHA - FORNECIMENTO E INSTALAÇÃO | E14: CJ | F14: 36 | G14: 13.54 | H14: 17.36 | I14: 624.96 | J14: 0.0054
A15: 2.6 | B15: MEC - COD 05 | C15: Próprio | D15: ELETRODUTO EM ACO GALVANIZADO ELETROLITICO, LEVE, DIAMETRO 3/4" EM PAREDE - FORNECIMENTO E INSTALAÇÃO | E15: M | F15: 100.19 | G15: 16.32 | H15: 20.93 | I15: 2096.98 | J15: 0.0182
A16: 2.7 | B16: MEC - COD 06 | C16: Próprio | D16: LUVA PARA ELETRODUTO, GALVANIZADO, DN 25 MM (3/4"), PARA CIRCUITOS TERMINAIS, INSTALADA EM FORRO E PAREDE - FORNECIMENTO E INSTALAÇÃO | E16: UND | F16: 74 | G16: 7.49 | H16: 9.6 | I16: 710.4 | J16: 0.0062
A17: 2.8 | B17: MEC - COD 07 | C17: Próprio | D17: ELETRODUTO EM ACO GALVANIZADO ELETROLITICO, LEVE, DIAMETRO 3/4", SOB O FORRO, APARENTE(BARRA DE 3 METROS) - FORNECIMENTO E INSTALAÇÃO | E17: BR | F17: 40 | G17: 45.66 | H17: 58.55 | I17: 2342 | J17: 0.0204
A18: 2.9 | B18: MEC - COD 08 | C18: Próprio | D18: CURVA 90 GRAUS, PARA ELETRODUTO, EM ACO GALVANIZADO ELETROLITICO, DIAMETRO DE 20 MM (3/4"), PARA CIRCUITOS TERMINAIS, INSTALADA EM FORRO - FORNECIMENTO E INSTALAÇÃO. | E18: UND | F18: 42 | G18: 13.17 | H18: 16.89 | I18: 709.38 | J18: 0.0062
A19: 2.10 | B19: MEC - COD 09 | C19: Próprio | D19: ELETRODUTO FLEXIVEL, EM ACO GALVANIZADO, REVESTIDO EXTERNAMENTE COM PVC PRETO, DIAMETRO EXTERNO DE 25 MM (3/4"), TIPO SEALTUBO - FORNECIMENTO E INSTALAÇÃO | E19: M | F19: 4.8 | G19: 17.4 | H19: 22.31 | I19: 107.09 | J19: 0.0009
A20: 2.11 | B20: 95801 | C20: SINAPI | D20: CONDULETE DE ALUMÍNIO, TIPO X, PARA ELETRODUTO DE AÇO GALVANIZADO DN 20 MM (3/4) - FORNECIMENTO E INSTALAÇÃO | E20: UN | F20: 10 | G20: 33.22 | H20: 42.59 | I20: 425.9 | J20: 0.0037
A21: 2.12 | B21: 98297 | C21: SINAPI | D21: CABO ELETRÔNICO CATEGORIA 6, INSTALADO EM EDIFICAÇÃO INSTITUCIONAL - FORNECIMENTO E INSTALAÇÃO. AF_11/2019 | E21: M | F21: 1810.3 | G21: 8.08 | H21: 10.36 | I21: 18754.71 | J21: 0.1631
A22: 2.13 | B22: MEC - COD 10 | C22: Próprio | D22: CONDULETE ALUMINIO "LR" 3/4, COM CONDULETE METÁLICO PARA 1 TOMADA - FORNECIMENTO E INSTALAÇÃO | E22: CJ | F22: 7 | G22: 40.75 | H22: 52.25 | I22: 365.75 | J22: 0.0032
A23: 2.14 | B23: MEC - COD 11 | C23: Próprio | D23: CONDULETE ALUMINIO "E" 3/4" , TAMPA METÁLICA PARA 1 PONTO RJ45 - FORNECIMENTO E INSTALAÇÃO | E23: CJ | F23: 23 | G23: 39.5 | H23: 50.65 | I23: 1164.95 | J23: 0.0101
A24: 2.15 | B24: MEC - COD 12 | C24: Próprio | D24: CONDULETE ALUMINIO "X" 3/4" , TAMPA METÁLICA PARA 1 PONTO RJ45 - FORNECIMENTO E INSTALAÇÃO | E24: CJ | F24: 22 | G24: 40.75 | H24: 52.25 | I24: 1149.5 | J24: 0.01
A25: 2.16 | B25: MEC - COD 13 | C25: Próprio | D25: BOX RETO COM ARRUELA EM ALUMINIO PARA CONDULETE - FORNECIMENTO E INSTALAÇÃO | E25: UND | F25: 64 | G25: 5.98 | H25: 7.67 | I25: 490.88 | J25: 0.0043
A26: 2.17 | B26: MEC - COD 14 | C26: Próprio | D26: TOMADA LOGICA RJ-45 CAT.6 CONJUNTO MONTADO - FORNECIMENTO E INSTALAÇÃO | E26: UND | F26: 51 | G26: 40.14 | H26: 51.47 | I26: 2624.97 | J26: 0.0228
A27: 2.18 | B27: COMP.ELET.09 | C27: Próprio | D27: PATCH PANEL 24 PORTAS, CARREGADO, CATEGORIA 6 - FORNECIMENTO E INSTALAÇÃO | E27: un | F27: 3 | G27: 1639.64 | H27: 2102.35 | I27: 6307.05 | J27: 0.0549
A28: 2.19 | B28: MEC - COD 15 | C28: Próprio | D28: PATCH CORD (CABO DE REDE), CATEGORIA 6 (CAT 6) UTP, 4 PARES, EXTENSAO DE 2,50 M - FORNECIMENTO E INSTALAÇÃO | E28: UN | F28: 51 | G28: 37.7 | H28: 48.34 | I28: 2465.34 | J28: 0.0214
A29: 2.20 | B29: MEC - COD 16 | C29: Próprio | D29: PATCH CORD (CABO DE REDE), CATEGORIA 6 (CAT 6) UTP, 23 AWG, 4 PARES, EXTENSAO DE 1,50 M - FORNECIMENTO E INSTALAÇÃO | E29: UN | F29: 51 | G29: 29.31 | H29: 37.58 | I29: 1916.58 | J29: 0.0167
A30: 2.21 | B30: MEC - COD 33 | C30: Próprio | D30: CORDAO OPTICO 02F MM50 LC-UPC/LC-UPC 1.5M - FORNECIMENTO E INSTALAÇÃO | E30: UN | F30: 3 | G30: 182.25 | H30: 233.68 | I30: 701.04 | J30: 0.0061
A31: 2.22 | B31: MEC - COD 34 | C31: Próprio | D31: MÓDULO MINI-GBIC GIGABIT 0,5KM, KGM 2105 . REF.: INTELBRAS OU EQUIVALENTE TÉCNICO - FORNECIMENTO E INSTALAÇÃO | E31: UN | F31: 3 | G31: 226.32 | H31: 290.19 | I31: 870.57 | J31: 0.0076
A32: 3 | D32: SISTEMA DE CLIMATIZAÇÃO | I32: =ROUND(SUM(I33:I44),2) -> 6528.33 | J32: =ROUND(I32/$I$95,4) -> 0.0568
A33: 3.1 | B33: 97327 | C33: SINAPI | D33: TUBO EM COBRE FLEXÍVEL, DN 1/4, COM ISOLAMENTO, INSTALADO EM RAMAL DE ALIMENTAÇÃO DE AR CONDICIONADO COM CONDENSADORA INDIVIDUAL FORNECIMENTO E INSTALAÇÃO. AF_12/2015 | E33: M | F33: 29.62 | G33: 26.13 | H33: =ROUND(G33*(1+$H$2),2) -> 33.5 | I33: =ROUND(F33*H33,2) -> 992.27 | J33: 0.0086
A34: 3.2 | B34: 97329 | C34: SINAPI | D34: TUBO EM COBRE FLEXÍVEL, DN 1/2", COM ISOLAMENTO, INSTALADO EM RAMAL DE ALIMENTAÇÃO DE AR CONDICIONADO COM CONDENSADORA INDIVIDUAL  FORNECIMENTO E INSTALAÇÃO. AF_12/2015 | E34: M | F34: 29.62 | G34: 55.74 | H34: =ROUND(G34*(1+$H$2),2) -> 71.47 | I34: =ROUND(F34*H34,2) -> 2116.94 | J34: 0.0184
A35: 3.3 | B35: 103805 | C35: SINAPI | D35: COTOVELO EM COBRE, DN 15 MM, 90 GRAUS, SEM ANEL DE SOLDA, INSTALADO EM RAMAL E SUB-RAMAL DE GÁS COMBUSTÍVEL - FORNECIMENTO E INSTALAÇÃO. AF_04/2022 | E35: UN | F35: 26 | G35: 15.89 | H35: 20.37 | I35: 529.62 | J35: 0.0046
A36: 3.4 | B36: HID-DPE04 | C36: Próprio | D36: CABO PPP 3X2,5MM 1KV 90º, PARA INSTALAÇÃO DO COMANDO DO AR-CONTICIONADO (ENTRE CONDENSADORA E EVAPORADORA), FORNECIMENTO E INSTALAÇÃO | E36: m | F36: 29.62 | G36: 12.79 | H36: 16.4 | I36: 485.77 | J36: 0.0042
A37: 3.5 | B37: MEC-COD02 | C37: Próprio | D37: ELETROCALHA METÁLICA 100X50MM, LISA CHAPA 18 BARRA 3 METROS, FORNECIMENTO E INSTALAÇÃO AÉREO | E37: UND | F37: 1 | G37: 123.86 | H37: 158.81 | I37: 158.81 | J37: 0.0014
A38: 3.6 | B38: MEC-COD03 | C38: Próprio | D38: ELETROCALHA - CURVA 90 VERTICAL 100x50MM CHAPA 20 FORNECIMENTO E INSTALAÇÃO | E38: UND | F38: 3 | G38: 48.39 | H38: 62.05 | I38: 186.15 | J38: 0.0016
A39: 3.7 | B39: MEC-COD35 | C39: Próprio | D39: ELETROCALHA METÁLICA 100X50MM, LISA CHAPA 18 BARRA 3 METROS, FORNECIMENTO E INSTALAÇÃO | E39: UN | F39: 9 | G39: 107.12 | H39: 137.35 | I39: 1236.15 | J39: 0.0108
A40: 3.8 | D40: DRENO DOS SPLITS | J40: 0
A41: 3.8.1 | B41: 89865 | C41: SINAPI | D41: TUBO, PVC, SOLDÁVEL, DN 25MM, INSTALADO EM DRENO DE AR-CONDICIONADO - FORNECIMENTO E INSTALAÇÃO. AF_08/2022 | E41: M | F41: 27 | G41: 16.07 | H41: 20.6 | I41: =ROUND(F41*H41,2) -> 556.2 | J41: 0.0048
A42: 3.8.2 | B42: 89866 | C42: SINAPI | D42: JOELHO 90 GRAUS, PVC, SOLDÁVEL, DN 25MM, INSTALADO EM DRENO DE AR-CONDICIONADO - FORNECIMENTO E INSTALAÇÃO. AF_08/2022 | E42: UN | F42: 11 | G42: 6.42 | H42: 8.23 | I42: 90.53 | J42: 0.0008
A43: 3.8.3 | B43: 89868 | C43: SINAPI | D43: LUVA, PVC, SOLDÁVEL, DN 25MM, INSTALADO EM DRENO DE AR-CONDICIONADO - FORNECIMENTO E INSTALAÇÃO. AF_08/2022 | E43: UN | F43: 11 | G43: 5.05 | H43: 6.48 | I43: 71.28 | J43: 0.0006
A44: 3.8.4 | B44: 89867 | C44: SINAPI | D44: JOELHO 45 GRAUS, PVC, SOLDÁVEL, DN 25MM, INSTALADO EM DRENO DE AR-CONDICIONADO - FORNECIMENTO E INSTALAÇÃO. AF_08/2022 | E44: UN | F44: 11 | G44: 7.42 | H44: 9.51 | I44: 104.61 | J44: 0.0009
A45: 4 | D45: INSTALAÇÕES ELÉTRICAS COMUM E ESTABILIZADAS | I45: =ROUND(SUM(I46:I84),2) -> 53678.39 | J45: 0.4669
A46: 4.1 | B46: MEC-COD07 | C46: Próprio | D46: ELETRODUTO EM ACO GALVANIZADO ELETROLITICO, LEVE, DIAMETRO 3/4", INSTALADO SOB O FORRO, APARENTE(BARRA DE 3 METROS) - FORNECIMENTO E INSTALAÇÃO | E46: BR | F46: 38 | G46: 45.66 | H46: 58.55 | I46: =ROUND(F46*H46,2) -> 2224.9 | J46: 0.0194
A47: 4.2 | B47: MEC-COD05 | C47: Próprio | D47: ELETRODUTO EM ACO GALVANIZADO ELETROLITICO, LEVE, DIAMETRO 3/4", INSTALADO EM PAREDE - FORNECIMENTO E INSTALAÇÃO | E47: M | F47: 107 | G47: 17.12 | H47: 21.95 | I47: 2348.65 | J47: 0.0204
A48: 4.3 | B48: MEC-COD08 | C48: Próprio | D48: CURVA 90 GRAUS, PARA ELETRODUTO, EM ACO GALVANIZADO ELETROLITICO, DIAMETRO DE 20 MM (3/4"), PARA CIRCUITOS TERMINAIS, INSTALADA EM FORRO - FORNECIMENTO E INSTALAÇÃO. | E48: UND | F48: 31 | G48: 13.17 | H48: 16.89 | I48: 523.59 | J48: 0.0046
A49: 4.4 | B49: MEC-COD04 | C49: Próprio | D49: SAIDA HORIZONTAL PARA ELETRODUTO D=3/4", COM BOX RETO, INSTALADOS EM ELETROCALHA - FORNECIMENTO E INSTALAÇÃO | E49: CJ | F49: 43 | G49: 13.54 | H49: 17.36 | I49: 746.48 | J49: 0.0065
A50: 4.5 | B50: MEC-COD06 | C50: Próprio | D50: LUVA PARA ELETRODUTO, GALVANIZADO, DN 25 MM (3/4"), PARA CIRCUITOS TERMINAIS, INSTALADA EM FORRO E PAREDE - FORNECIMENTO E INSTALAÇÃO | E50: UND | F50: 73 | G50: 7.49 | H50: 9.6 | I50: 700.8 | J50: 0.0061
A51: 4.6 | B51: HID-DPE03 | C51: Próprio | D51: ELETROCALHA METÁLICA 50X50MM, BARRA 3 METROS - FORNECIMENTO E INSTALAÇÃO | E51: UND | F51: 27 | G51: 145.22 | H51: 186.2 | I51: 5027.4 | J51: 0.0437
A52: 4.7 | B52: MEC-COD18 | C52: Próprio | D52: EMENDA INTERNA ELETROCALHA 50X50MM - FORNECIMENTO E INSTALAÇÃO | E52: UN | F52: 27 | G52: 10.75 | H52: 13.78 | I52: 372.06 | J52: 0.0032
A53: 4.8 | B53: MEC-COD20 | C53: Próprio | D53: TÊ HORIZONTAL 20 X 50 MM PARA ELETROCALHA METÁLICA - FORNECIMENTO E INSTALAÇÃO | E53: UN | F53: 7 | G53: 33.19 | H53: 42.56 | I53: 297.92 | J53: 0.0026
A54: 4.9 | B54: MEC-COD21 | C54: Próprio | D54: CURVA HORIZONTAL 90º PARA ELETROCALHA 50X50 - FORNECIMENTO E INSTALAÇÃO | E54: UN | F54: 3 | G54: 24.11 | H54: 30.91 | I54: 92.73 | J54: 0.0008
A55: 4.10 | B55: 95795 | C55: SINAPI | D55: CONDULETE DE ALUMÍNIO, TIPO T, PARA ELETRODUTO DE AÇO GALVANIZADO DN 20 MM (3/4''), APARENTE - FORNECIMENTO E INSTALAÇÃO. AF_10/2022 | E55: UN | F55: 6 | G55: 27.64 | H55: 35.44 | I55: 212.64 | J55: 0.0018
A56: 4.11 | B56: 95801 | C56: SINAPI | D56: CONDULETE DE ALUMÍNIO, TIPO X, PARA ELETRODUTO DE AÇO GALVANIZADO DN 20 MM (3/4 - FORNECIMENTO E INSTALAÇÃO | E56: UN | F56: 11 | G56: 33.22 | H56: 42.59 | I56: 468.49 | J56: 0.0041
A57: 4.12 | B57: MEC-COD19 | C57: Próprio | D57: CONDULETE ALUMINIO "E" 3/4" , TAMPA METÁLICA PARA 1 TOMADA - FORNECIMENTO E INSTALAÇÃO | E57: CJ | F57: 18 | G57: 33.27 | H57: 42.66 | I57: 767.88 | J57: 0.0067
A58: 4.13 | B58: MEC-COD22 | C58: Próprio | D58: CONDULETE ALUMINIO "LR" 3/4" , TAMPA METÁLICA PARA 1 TOMADA - FORNECIMENTO E INSTALAÇÃO | E58: CJ | F58: 5 | G58: 32.43 | H58: 41.58 | I58: 207.9 | J58: 0.0018
A59: 4.14 | B59: MEC-COD23 | C59: Próprio | D59: CONDULETE ALUMINIO "X" 3/4" , TAMPA METÁLICA PARA 1 TOMADA - FORNECIMENTO E INSTALAÇÃO | E59: CJ | F59: 46 | G59: 31.15 | H59: 39.94 | I59: 1837.24 | J59: 0.016
A60: 4.15 | B60: MEC-COD24 | C60: Próprio | D60: CONDULETE ALUMINIO "LR" 3/4" , TAMPA METÁLICA PARA 3 TOMADA - FORNECIMENTO E INSTALAÇÃO | E60: CJ | F60: 11 | G60: 31.92 | H60: 40.93 | I60: 450.23 | J60: 0.0039
A61: 4.16 | B61: MEC-COD25 | C61: Próprio | D61: CONDULETE ALUMINIO "X" 3/4" , TAMPA METÁLICA PARA 3 TOMADA - FORNECIMENTO E INSTALAÇÃO | E61: CJ | F61: 28 | G61: 30.64 | H61: 39.29 | I61: 1100.12 | J61: 0.0096
A62: 4.17 | B62: MEC-COD13 | C62: Próprio | D62: BOX RETO COM ARRUELA EM ALUMINIO PARA CONDULETE - FORNECIMENTO E INSTALAÇÃO | E62: UND | F62: 170 | G62: 5.98 | H62: 7.67 | I62: 1303.9 | J62: 0.0113
A63: 4.18 | B63: 92015 | C63: SINAPI | D63: TOMADA BAIXA DE SOBREPOR (3 MÓDULOS), 2P+T 20 A, SEM SUPORTE E SEM PLACA - FORNECIMENTO E INSTALAÇÃO. AF_03/2023 | E63: UN | F63: 40 | G63: 51.52 | H63: 66.06 | I63: 2642.4 | J63: 0.023
A64: 4.19 | B64: 91999 | C64: SINAPI | D64: TOMADA BAIXA DE SOBREPOR (1 MÓDULO), 2P+T 20 A, SEM SUPORTE E SEM PLACA - FORNECIMENTO E INSTALAÇÃO. AF_03/2023 | E64: UN | F64: 50 | G64: 18.95 | H64: 24.3 | I64: 1215 | J64: 0.0106
A65: 4.20 | B65: 91997 | C65: SINAPI | D65: TOMADA MÉDIA DE SOBREPOR (1 MÓDULO), 2P+T 20 A, INCLUINDO SUPORTE E PLACA - FORNECIMENTO E INSTALAÇÃO. AF_03/2023 | E65: UN | F65: 3 | G65: 31.42 | H65: 40.29 | I65: 120.87 | J65: 0.0011
A66: 4.21 | B66: 91991 | C66: SINAPI | D66: TOMADA ALTA DE SOBREPOR (1 MÓDULO), 2P+T 20 A, SEM SUPORTE E SEM PLACA - FORNECIMENTO E INSTALAÇÃO. AF_03/2023 | E66: UN | F66: 16 | G66: 30.41 | H66: 38.99 | I66: 623.84 | J66: 0.0054
A67: 4.22 | B67: 91928 | C67: SINAPI | D67: CABO DE COBRE FLEXÍVEL ISOLADO, 4 MM², ANTI-CHAMA 450/750 V, PARA CIRCUITOS TERMINAIS - FORNECIMENTO E INSTALAÇÃO. AF_03/2023 | E67: M | F67: 2219.25 | G67: 5.88 | H67: 7.54 | I67: 16733.15 | J67: 0.1455
A68: 4.23 | B68: 91926 | C68: SINAPI | D68: CABO DE COBRE FLEXÍVEL ISOLADO, 2,5 MM², ANTI-CHAMA 450/750 V, PARA CIRCUITOS TERMINAIS - FORNECIMENTO E INSTALAÇÃO. AF_03/2023 | E68: M | F68: 1656.1 | G68: 3.78 | H68: 4.85 | I68: 8032.09 | J68: 0.0699
A69: 4.24 | B69: 101561 | C69: SINAPI | D69: CABO DE COBRE FLEXÍVEL ISOLADO, 16 MM², 0,6/1,0 KV, PARA REDE AÉREA DE DISTRIBUIÇÃO DE ENERGIA ELÉTRICA DE BAIXA TENSÃO - FORNECIMENTO E INSTALAÇÃO. AF_07/2020 | E69: M | F69: 33 | G69: 14.77 | H69: 18.94 | I69: 625.02 | J69: 0.0054
A70: 4.25 | B70: 101889 | C70: SINAPI | D70: CABO DE COBRE ISOLADO, 25 MM², ANTI-CHAMA 0,6/1 KV, INSTALADO EM ELETROCALHA OU PERFILADO - FORNECIMENTO E INSTALAÇÃO. AF_10/2020 | E70: M | F70: 12.98 | G70: 23.05 | H70: 29.55 | I70: 383.56 | J70: 0.0033
A71: 4.26 | B71: 71205 | C71: GOINFRA CIVIL | D71: ELETRODUTO DE PVC RIGIDO DIAMETRO 2" - FORNECIMENTO E INSTALAÇÃO | E71: M | F71: 6.5 | G71: 34.22 | H71: 43.88 | I71: 285.22 | J71: 0.0025
A72: 4.27 | B72: 91177 | C72: SINAPI | D72: FIXAÇÃO DE TUBOS HORIZONTAIS DE PPR DIÂMETROS MAIORES QUE 40 MM E MENORES OU IGUAIS A 75 MM COM ABRAÇADEIRA METÁLICA RÍGIDA TIPO D 1 1/2" , FIXADA DIRETAMENTE NA LAJE. AF_05/2015 - FORNECIMENTO E INSTALAÇÃO | E72: M | F72: 4 | G72: 12.55 | H72: 16.09 | I72: 64.36 | J72: 0.0006
A73: 4.28 | D73: QUADROS ELETRICOS | J73: 0
A74: 4.28.1 | D74: QUADRO ELETRICO ESTABILIZADO | J74: 0
A75: 4.28.1.1 | B75: 101878 | C75: SINAPI | D75: QUADRO DE DISTRIBUIÇÃO DE ENERGIA EM CHAPA DE AÇO GALVANIZADO, DE SOBREPOR, COM BARRAMENTO TRIFÁSICO, PARA 18 DISJUNTORES DIN 100A - FORNECIMENTO E INSTALAÇÃO. AF_10/2020 | E75: UN | F75: 1 | G75: 504.97 | H75: =ROUND(G75*(1+$H$2),2) -> 647.47 | I75: =ROUND(F75*H75,2) -> 647.47 | J75: 0.0056
A76: 4.28.1.2 | B76: 93656 | C76: SINAPI | D76: DISJUNTOR MONOPOLAR TIPO DIN, CORRENTE NOMINAL DE 25A - FORNECIMENTO E INSTALAÇÃO. AF_10/2020 | E76: UN | F76: 17 | G76: 13.14 | H76: 16.85 | I76: 286.45 | J76: 0.0025
A77: 4.28.1.3 | B77: MEC-COD27 | C77: Próprio | D77: DISPOSITIVO DE PROTEÇÃO CONTRA SURTOS(DPS) 20KA, 3F - FORNECIMENTO E INSTALAÇÃO | E77: UN | F77: 1 | G77: 297.79 | H77: 381.83 | I77: 381.83 | J77: 0.0033
A78: 4.28.1.4 | B78: 93673 | C78: SINAPI | D78: DISJUNTOR TRIPOLAR TIPO DIN, CORRENTE NOMINAL DE 50A - FORNECIMENTO E INSTALAÇÃO. AF_10/2020 | E78: UN | F78: 2 | G78: 93.68 | H78: 120.12 | I78: 240.24 | J78: 0.0021
A79: 4.28.2 | D79: QUADRO ELETRICO COMUM | J79: 0
A80: 4.28.2.1 | B80: MEC-COD28 | C80: Próprio | D80: QUADRO DE DISTRIBUIÇÃO DE ENERGIA EM CHAPA DE AÇO GALVANIZADO, DE SOBREPOR, COM BARRAMENTO TRIFÁSICO, PARA 30 DISJUNTORES DIN 150A - FORNECIMENTO E INSTALAÇÃO. AF_10/2020 | E80: UN | F80: 1 | G80: 620.09 | H80: =ROUND(G80*(1+$H$2),2) -> 795.08 | I80: =ROUND(F80*H80,2) -> 795.08 | J80: 0.0069
A81: 4.28.2.2 | B81: MEC-COD27 | C81: Próprio | D81: DISPOSITIVO DE PROTEÇÃO CONTRA SURTOS(DPS) 20KA, 3F - FORNECIMENTO E INSTALAÇÃO | E81: UN | F81: 1 | G81: 297.79 | H81: 381.83 | I81: 381.83 | J81: 0.0033
A82: 4.28.2.3 | B82: MEC-COD26 | C82: Próprio | D82: DISJUNTOR TRIPOLAR , TIPO DIN, TERMOMAGNÉTICO, CORRENTE DE 63A, 6KA - FORNECIMENTO E INSTALAÇÃO | E82: UN | F82: 2 | G82: 346.66 | H82: 444.49 | I82: 888.98 | J82: 0.0077
A83: 4.28.2.4 | B83: 93655 | C83: SINAPI | D83: DISJUNTOR MONOPOLAR TIPO DIN, CORRENTE NOMINAL DE 20A - FORNECIMENTO E INSTALAÇÃO. AF_10/2020 | E83: UN | F83: 26 | G83: 13.14 | H83: 16.85 | I83: 438.1 | J83: 0.0038
A84: 4.28.2.5 | B84: MEC-COD29 | C84: Próprio | D84: INTERRUPTOR DIFERENCIAL RESIDUAL (D.R.) BIPOLAR DE 20A-30mA - FORNECIMENTO E INSTALAÇÃO | E84: UN | F84: 1 | G84: 163.76 | H84: 209.97 | I84: 209.97 | J84: 0.0018
A85: 5 | D85: REVISÃO DAS INSTALAÇÕES ELÉTRICAS EXISTENTE | I85: =ROUND(SUM(I86:I94),2) -> 2065.81 | J85: 0.018
A86: 5.1 | B86: MEC-COD05 | C86: Próprio | D86: ELETRODUTO EM ACO GALVANIZADO ELETROLITICO, LEVE, DIAMETRO 3/4" - FORNECIMENTO E INSTALAÇÃO EM PAREDE | E86: M | F86: 7.5 | G86: 17.12 | H86: =ROUND(G86*(1+$H$2),2) -> 21.95 | I86: =ROUND(F86*H86,2) -> 164.63 | J86: 0.0014
A87: 5.2 | B87: 91968 | C87: SINAPI | D87: INTERRUPTOR PARALELO (3 MÓDULOS), 10A/250V, SEM SUPORTE E SEM PLACA - FORNECIMENTO E INSTALAÇÃO. AF_03/2023 | E87: UN | F87: 2 | G87: 58.41 | H87: 74.89 | I87: 149.78 | J87: 0.0013
A88: 5.3 | B88: MEC-COD24 | C88: Próprio | D88: CONDULETE ALUMINIO "LR" 3/4" , TAMPA METÁLICA PARA 3 INTERRUPTORES - FORNECIMENTO E INSTALAÇÃO | E88: CJ | F88: 1 | G88: 31.92 | H88: 40.93 | I88: 40.93 | J88: 0.0004
A89: 5.4 | B89: MEC-COD25 | C89: Próprio | D89: CONDULETE ALUMINIO "X" 3/4" , TAMPA METÁLICA PARA 3 INTERRUPTORES - FORNECIMENTO E INSTALAÇÃO | E89: CJ | F89: 1 | G89: 30.64 | H89: 39.29 | I89: 39.29 | J89: 0.0003
A90: 5.5 | B90: 91978 | C90: SINAPI | D90: INTERRUPTOR INTERMEDIÁRIO (1 MÓDULO), 10A/250V, SEM SUPORTE E SEM PLACA - FORNECIMENTO E INSTALAÇÃO. AF_03/2023 | E90: UN | F90: 5 | G90: 33.58 | H90: 43.06 | I90: 215.3 | J90: 0.0019
A91: 5.6 | B91: MEC-COD19 | C91: Próprio | D91: CONDULETE ALUMINIO "E" 3/4" , TAMPA METÁLICA PARA 1 INTERRUPTOR - FORNECIMENTO E INSTALAÇÃO | E91: CJ | F91: 5 | G91: 33.27 | H91: 42.66 | I91: 213.3 | J91: 0.0019
A92: 5.7 | B92: MEC-COD36 | C92: Próprio | D92: TAMPA CEGA EM PVC PARA CONDULETE 4X2", ISOLAR CAIXA 4X2" COM FIAÇÃO - FORNECIMENTO E INSTALAÇÃO | E92: UN | F92: 4 | G92: 4.65 | H92: 5.96 | I92: 23.84 | J92: 0.0002
A93: 5.8 | B93: 91999 | C93: SINAPI | D93: TOMADA BAIXA DE EMBUTIR (1 MÓDULO), 2P+T 20 A, SEM SUPORTE E SEM PLACA - FORNECIMENTO E INSTALAÇÃO EM CAIXA MOPA. AF_03/2023 | E93: UN | F93: 34 | G93: 18.95 | H93: 24.3 | I93: 826.2 | J93: 0.0072
A94: 5.9 | B94: MEC-COD37 | C94: Próprio | D94: ISOLAR CIRCUITOS ELÉTRICOS NO PONTO ELÉTRICO E DENTRO QUADRO ELÉTRICO, FAZER A IDENTIFICAÇÃO - FORNECIMENTO E INSTALAÇÃO | E94: UN | F94: 38 | G94: 8.06 | H94: 10.33 | I94: 392.54 | J94: 0.0034
D95: TOTAL | G95: TOTAL DESONERADO | I95: =ROUND(I32+I45+I85+I9+I7,2) -> 114970.92 | J95: 1
